bitfinex-derivatives/quotes_ETHF0:USTF0_20260131
["timestamp","ask_amount","ask_price","bid_price","bid_amount"]
[1769880961893,1.24683291,2400.2,2396.1,2.64705952]
[1769880962086,3.342,2401.6,2397.5,2.64705952]
[1769880962290,3.342,2401.6,2398.3,0.20879]
[1769880962495,2.695,2402.5,2398.3,0.20879]
[1769880962496,1.08244663,2402.8,2399.2,0.20872]
[1769880962686,1.08540841,2402.8,2399.5,0.20869]
[1769880963089,1.08540841,2402.8,2399.2,0.00446957]
[1769880963292,1.08540841,2402.8,2399.3,3.341]
[1769880963691,1.08540841,2402.8,2399.9,0.20865]
[1769880963893,3.341,2404.6,2399.3,14.421]
[1769880963894,1.29656735,2405.0,2400.8,4.0938974]
[1769880964199,1.29656735,2405.0,2401.3,3.8853174]
[1769880964393,1.26934797,2403.8,2401.3,3.8853174]
[1769880964892,1.26934797,2403.3,2401.3,3.88902239]
[1769880965087,1.47773797,2403.0,2400.8,3.8853174]
[1769880965493,1.26934797,2403.7,2400.8,3.8853174]
[1769880965694,0.00364633,2403.8,2400.8,3.8853174]
[1769880965898,0.00364633,2403.8,2401.0,3.8853174]
[1769880966090,1.2729943,2406.4,2401.9,0.20848]
[1769880966291,4.6119943,2406.9,2402.3,3.8853174]
[1769880966500,1.2729943,2407.4,2403.1,3.8853174]
[1769880966798,1.2729943,2407.4,2402.6,3.339]
[1769880966799,1.24150063,2408.0,2403.8,3.8853174]
[1769880966993,1.21700394,2407.8,2404.0,3.98205237]
[1769880967196,1.21700394,2407.8,2403.8,0.00415873]
[1769880967197,0.00368784,2408.0,2404.2,3.98205237]
[1769880967500,0.00368784,2408.0,2404.8,3.98205237]
[1769880967800,0.00368784,2408.0,2405.1,3.98205237]
[1769880968092,1.22069178,2408.0,2405.1,3.98205237]
[1769880968299,0.00368784,2408.0,2405.1,3.98205237]
[1769880968599,0.00368784,2408.0,2405.1,4.19025237]
[1769880968791,0.00368784,2408.0,2405.1,3.98205237]
[1769880969293,1.08483556,2408.8,2405.1,4.19026237]
[1769880969498,1.52383072,2409.7,2405.6,3.98205237]
[1769880969702,1.52751856,2409.3,2405.8,3.98205237]
[1769880969893,1.52751856,2408.5,2405.2,3.98205237]
[1769880970090,0.20785,2409.3,2405.2,3.98205237]
[1769880970091,1.52751856,2407.6,2405.2,3.98205237]
[1769880970294,0.00472909,2407.6,2405.2,3.98628294]
[1769880970497,0.00472909,2407.6,2405.4,3.98205237]
[1769880971093,1.57933321,2407.6,2405.4,3.98205237]
[1769880971297,1.57460412,2408.9,2405.4,3.98205237]
[1769880971498,0.20785,2409.3,2405.4,3.98205237]
[1769880971499,1.78245412,2409.3,2405.4,3.98205237]
[1769880971699,1.57460412,2408.7,2405.4,3.98205237]
[1769880971898,1.57460412,2408.7,2405.2,0.00423057]
[1769880971899,1.78268412,2406.6,2405.2,5.7e-07]
[1769880972093,1.78268412,2406.6,2404.4,3.98205237]
[1769880972094,0.20808,2406.6,2404.4,3.98205237]
[1769880972398,1.57460412,2407.2,2404.4,3.98205237]
[1769880972793,1.78124769,2406.4,2403.6,3.98205237]
[1769880972999,1.78475279,2406.4,2403.6,3.98645649]
[1769880973592,0.20811,2406.3,2403.6,3.98645649]
[1769880973797,0.0035051,2406.4,2403.6,3.98645649]
[1769880973997,1.78475279,2406.4,2403.6,3.98645649]
[1769880974200,1.78124769,2405.9,2403.8,3.98205237]
[1769880974392,1.78124769,2405.9,2403.6,0.00440412]
[1769880974593,0.0035051,2406.4,2403.6,0.00440412]
[1769880974594,0.20821,2405.1,2403.6,0.00440412]
[1769880974903,1.76688162,2406.2,2403.6,3.98645649]
[1769880975201,1.76688162,2405.9,2403.6,3.98645649]
[1769880975393,0.0035051,2406.4,2403.8,3.98205237]
[1769880976099,0.0035051,2406.4,2403.6,0.00440412]
[1769880976100,0.0035051,2406.4,2404.0,3.98205237]
[1769880976300,1.77038672,2408.5,2404.1,0.2083]
[1769880976496,3.53977,2410.2,2405.3,3.98205237]
[1769880976497,0.20786,2409.2,2405.3,3.98205237]
[1769880976798,0.20772,2410.8,2405.3,3.98205237]
[1769880976799,1.79445719,2410.0,2405.9,4.19018237]
[1769880977001,0.20781,2409.8,2406.1,3.98205237]
[1769880977196,0.20781,2409.8,2404.8,0.20823]
[1769880977197,0.20781,2409.8,2406.5,3.98205237]
[1769880977397,1.79445719,2412.0,2407.9,3.98205237]
[1769880977602,1.79445719,2412.0,2407.8,0.20797]
[1769880977603,0.20764,2411.7,2408.1,3.98205237]
[1769880978104,0.20768,2411.3,2408.3,3.98205237]
[1769880978299,1.79445719,2410.8,2408.5,3.98205237]
[1769880978501,0.20776,2410.3,2408.3,3.98739049]
[1769880979202,1.80381996,2411.2,2408.5,3.98205237]
[1769880980305,1.80381996,2410.2,2408.3,3.98206049]
[1769880980601,1.91083395,2410.8,2408.3,3.98206049]
[1769880980803,2.11855395,2410.8,2408.3,3.98206049]
[1769880981100,0.20772,2410.8,2408.3,3.98206049]
[1769880981306,2.11855395,2410.8,2408.3,3.98206049]
[1769880981503,1.91083395,2410.8,2408.3,3.98206049]
[1769880981697,3.33276168,2411.3,2408.3,3.98206049]
[1769880981698,1.91083395,2410.2,2408.3,3.98206049]
[1769880982207,1.91083395,2410.2,2408.3,8.12e-06]
[1769880982413,0.00376168,2411.3,2408.3,8.12e-06]
[1769880982602,0.20757,2412.5,2408.8,3.98205237]
[1769880982910,2.18975538,2412.5,2409.0,3.98205237]
[1769880983404,1.98218538,2411.6,2409.0,3.98205237]
[1769880983605,0.21244784,2411.6,2409.0,3.98205237]
[1769880983808,0.00479784,2411.6,2409.0,3.98205237]
[1769880984202,1.98698322,2411.6,2409.2,3.98205237]
[1769880984403,1.98218538,2411.4,2409.2,3.98205237]
[1769880984614,0.00479784,2411.6,2409.2,3.98205237]
[1769880985109,1.98681088,2413.2,2409.7,3.98205237]
[1769880985303,0.765368,2413.5,2409.9,3.98205237]
[1769880985504,0.20739,2414.6,2410.9,3.98205237]
[1769880985816,2.02006926,2415.6,2411.6,3.98205237]
[1769880986105,2.02006926,2413.9,2411.8,3.98205237]
[1769880986303,0.00460685,2413.9,2411.8,3.98205237]
[1769880986502,2.08356809,2415.6,2411.8,3.98205237]
[1769880986701,3.53327,2416.0,2412.2,3.98205237]
[1769880986901,0.20707,2418.4,2413.3,3.98205237]
[1769880986902,2.08356809,2417.0,2413.3,3.98205237]
[1769880987102,2.29070809,2417.5,2413.6,3.98205237]
[1769880987304,2.08356809,2417.3,2413.6,3.98205237]
[1769880987504,0.00449939,2417.3,2413.6,3.98513906]
[1769880988206,2.08356809,2418.6,2414.3,4.18946237]
[1769880988405,2.08356809,2418.1,2414.5,3.98205237]
[1769880988602,2.13210254,2418.7,2414.8,3.98205237]
[1769880988805,2.13210254,2419.4,2415.0,3.98205237]
[1769880989005,2.13210254,2419.4,2415.5,3.98205237]
[1769880989206,2.13210254,2418.6,2415.5,3.98614431]
[1769880989705,0.00460685,2418.0,2415.5,3.98614431]
[1769880989912,0.00460685,2417.7,2415.5,3.98614431]
[1769880990103,2.34400606,2417.7,2415.5,3.98614431]
[1769880990302,0.00477352,2417.7,2415.5,3.98614431]
[1769880990717,0.00460685,2417.4,2415.5,3.98614431]
[1769880990902,0.00477352,2417.7,2415.5,3.98614431]
[1769880991201,0.00938037,2417.7,2415.5,3.98614431]
[1769880991409,2.23978167,2417.7,2415.5,3.98614431]
[1769880991801,2.23500815,2417.2,2415.5,0.00409194]
[1769880992312,0.00460685,2416.1,2415.0,3.98205237]
[1769880992513,2.44217815,2417.2,2415.0,3.98205237]
[1769880992710,0.00477352,2417.7,2415.1,3.98205237]
[1769880993220,0.00477352,2417.7,2415.1,3.9853406]
[1769880993510,2.27200479,2417.7,2415.1,3.9853406]
[1769880993814,0.00477352,2417.7,2415.1,3.9853406]
[1769880994308,2.26723127,2418.6,2415.3,3.98205237]
[1769880994504,0.20692,2420.1,2415.5,3.98205237]
[1769880994505,2.19913725,2419.1,2415.5,3.98205237]
[1769880994713,1.99212725,2420.2,2416.1,0.20726]
[1769880994910,1.99212725,2420.4,2416.5,3.98205237]
[1769880995104,1.99212725,2418.6,2416.5,3.98205237]
[1769880995305,0.20706,2418.5,2416.5,3.98205237]
[1769880996012,0.00379308,2418.6,2416.5,3.98205237]
[1769880996311,0.00379308,2418.6,2416.2,0.20725]
[1769880996312,0.20695,2419.8,2416.7,3.98205237]
[1769880996511,1.99212725,2420.4,2416.7,3.98205237]
[1769880996709,1.60014136,2419.9,2416.7,3.98205237]
[1769880996915,1.58027318,2419.0,2416.7,3.98205237]
[1769880997114,0.20706,2418.5,2416.7,3.98205237]
[1769880997313,0.21166685,2418.5,2416.7,3.98205237]
[1769880997613,0.00473791,2419.0,2416.7,3.98205237]
[1769880997915,1.58027318,2420.5,2416.7,3.98205237]
[1769880998115,1.58027318,2420.4,2416.7,3.98205237]
[1769880998512,1.59765259,2420.2,2416.7,3.98205237]
[1769880999013,0.20698,2419.4,2416.7,3.98205237]
[1769880999815,1.6012958,2420.2,2416.7,3.98205237]
[1769881000014,0.207,2419.2,2416.7,3.98205237]
[1769881000212,0.00460685,2418.9,2416.7,3.98205237]
[1769881000517,0.20707,2418.4,2416.7,3.98205237]
[1769881000707,0.00460685,2417.9,2416.7,3.98205237]
[1769881001109,0.00460685,2417.7,2416.7,3.98205237]
[1769881001310,1.59618571,2420.4,2416.7,3.98205237]
[1769881001516,0.2069,2420.4,2416.9,3.85779634]
[1769881001917,0.2069,2420.3,2417.1,3.85779634]
[1769881002117,3.315,2421.1,2417.1,3.85779634]
[1769881002118,1.59618571,2420.0,2417.1,3.85779634]
[1769881002318,0.20698,2419.4,2417.1,3.86242104]
[1769881002518,0.20699,2419.3,2417.1,3.86242104]
[1769881002714,1.80824777,2420.0,2417.1,3.86242104]
[1769881002919,0.00513206,2420.0,2417.1,3.86242104]
[1769881003124,0.00513206,2420.0,2417.1,4.06959104]
[1769881003418,1.56601539,2420.0,2417.1,3.86242104]
[1769881003616,0.207,2419.2,2417.1,3.86242104]
[1769881004119,0.20695,2419.8,2417.1,3.86242104]
[1769881004314,0.00513206,2420.0,2417.1,3.86242104]
[1769881004315,1.56601539,2420.0,2417.1,3.86242104]
[1769881004716,0.00513206,2420.0,2417.1,3.86242104]
[1769881005019,0.00513206,2420.0,2417.4,3.85779634]
[1769881005218,0.20682,2421.3,2418.3,3.85779634]
[1769881005414,0.20682,2421.3,2418.4,7.17079634]
[1769881005618,0.20683,2421.1,2418.5,3.85779634]
[1769881005819,0.20683,2421.1,2418.6,3.85779634]
[1769881006212,0.21089058,2421.1,2418.6,3.85779634]
[1769881006413,0.00406058,2421.1,2418.6,3.85779634]
[1769881007012,0.20671,2422.6,2419.5,3.85779634]
[1769881007219,1.57157464,2422.4,2419.5,3.85779634]
[1769881007512,1.57157464,2421.2,2419.5,3.85779634]
[1769881007717,1.99815464,2420.8,2418.5,3.313]
[1769881007912,1.99815464,2420.8,2418.5,3.31646971]
[1769881008121,0.20688,2420.6,2418.5,3.31646971]
[1769881008313,0.00460685,2420.2,2418.5,3.31646971]
[1769881008517,0.20691,2420.3,2418.5,3.31646971]
[1769881008918,0.00296134,2420.8,2418.5,3.31646971]
[1769881009315,2.04073744,2422.2,2418.5,3.31646971]
[1769881009517,0.20679,2421.6,2418.5,3.31646971]
[1769881009720,0.20687,2420.7,2418.6,3.85779634]
[1769881010021,2.04369878,2420.7,2418.6,3.43739634]
[1769881010219,2.04369878,2420.7,2418.5,0.00346971]
[1769881010220,0.20697,2419.5,2418.5,0.00346971]
[1769881010419,2.46409878,2419.6,2416.1,3.311]
[1769881010619,5.61766318,2420.1,2416.1,3.51826]
[1769881010925,0.207,2419.1,2416.1,3.311]
[1769881011123,0.20702,2419.0,2416.1,3.311]
[1769881011320,2.30666318,2418.8,2416.1,3.31575094]
[1769881011519,0.00460685,2417.7,2416.1,0.00475094]
[1769881011720,3.311,2418.7,2414.7,3.311]
[1769881011721,0.00460685,2416.7,2414.7,3.311]
[1769881011919,2.30666318,2418.4,2414.7,3.311]
[1769881012117,0.20706,2418.5,2414.8,3.85779634]
[1769881012315,0.20711,2417.9,2414.8,3.85779634]
[1769881012522,2.30862561,2418.7,2414.8,3.85779634]
[1769881012721,2.3129572,2418.7,2414.8,3.86101029]
[1769881012923,0.00433159,2418.7,2414.8,3.86101029]
[1769881013228,0.00433159,2418.7,2415.7,3.85779634]
[1769881013424,0.00433159,2418.7,2416.0,3.85779634]
[1769881013925,2.42559561,2417.9,2416.0,3.43378634]
[1769881014120,0.00460685,2417.5,2416.0,3.43378634]
[1769881014326,0.20716,2417.3,2416.0,2.98109634]
[1769881014525,2.42559561,2417.9,2416.0,2.98109634]
[1769881014526,0.20712,2417.8,2416.0,2.98109634]
[1769881014923,0.00460685,2417.0,2414.8,0.00321395]
[1769881015126,0.20719,2416.9,2414.8,0.00321395]
[1769881015627,0.00460685,2416.8,2414.8,0.00321395]
[1769881015925,0.00460685,2416.7,2414.8,0.00321395]
[1769881016126,0.00460685,2416.1,2414.8,0.00321395]
[1769881016625,0.20723,2416.5,2414.8,0.00321395]
[1769881017023,0.20723,2416.5,2414.8,3.86101029]
[1769881017230,0.00460685,2416.3,2414.8,3.86101029]
[1769881017527,0.00460685,2416.5,2414.8,3.86101029]
[1769881017723,0.00406379,2417.0,2414.8,3.86101029]
[1769881019127,0.00406379,2417.0,2415.0,3.85779634]
[1769881019523,2.81659319,2418.7,2415.2,3.85779634]
[1769881019720,2.81659319,2418.7,2415.6,3.85779634]
[1769881020026,2.82065698,2419.2,2415.6,3.85779634]
[1769881020227,0.20706,2418.5,2415.7,7.16979634]
[1769881020527,0.21154354,2418.5,2415.8,3.85779634]
[1769881020723,2.81181034,2418.3,2415.8,3.85779634]
[1769881020925,0.20709,2418.1,2415.8,3.85779634]
[1769881021228,0.00448354,2418.5,2416.0,3.85779634]
[1769881021525,0.00448354,2418.5,2416.4,3.85779634]
[1769881021828,0.00448354,2418.5,2416.4,4.06502634]
[1769881022129,3.01872034,2420.2,2417.4,3.85779634]
[1769881022327,3.01872034,2420.2,2417.6,3.85779634]
[1769881022524,2.81181034,2420.8,2417.8,3.85779634]
[1769881022827,0.20682,2421.2,2417.8,3.85779634]
[1769881022828,0.20682,2421.2,2418.2,4.06487634]
[1769881023039,0.0040333,2421.2,2418.5,3.85779634]
[1769881023339,2.28507094,2423.7,2420.3,3.85779634]
[1769881023530,0.00460685,2423.5,2420.5,3.85779634]
[1769881023726,2.7102773,2423.8,2420.5,3.85779634]
[1769881023926,2.7102773,2423.6,2420.5,3.85779634]
[1769881024127,2.7102773,2423.6,2418.9,6.8875294]
[1769881024128,2.7102773,2421.9,2418.7,3.85779634]
[1769881024334,0.20682,2421.3,2418.7,3.86171922]
[1769881024534,0.20681,2421.5,2418.7,3.86171922]
[1769881024734,2.74198292,2420.9,2418.7,3.86171922]
[1769881025032,0.00460685,2420.3,2418.7,3.86171922]
[1769881025232,2.74198292,2421.3,2418.7,3.86171922]
[1769881025429,2.74198292,2421.4,2418.7,3.86171922]
[1769881025625,2.74658977,2420.7,2418.7,3.86171922]
[1769881025832,0.00460685,2421.3,2418.7,3.86171922]
[1769881026040,2.74198292,2421.8,2418.7,3.86171922]
[1769881026232,0.00303878,2421.9,2419.2,2.66079588]
[1769881026433,0.00303878,2421.9,2419.4,3.85779634]
[1769881026728,2.79417898,2421.2,2418.8,3.85779634]
[1769881026930,2.7958666,2420.4,2418.7,0.00392288]
[1769881027131,2.7958666,2420.9,2418.7,3.69280601]
[1769881027330,0.00460685,2420.0,2418.7,0.00392288]
[1769881027525,0.00501404,2420.0,2418.7,0.00392288]
[1769881027729,0.00501404,2420.0,2418.8,3.68888313]
[1769881028127,3.31,2421.7,2418.8,3.68888313]
[1769881028431,2.81154339,2421.6,2418.8,3.68888313]
[1769881028637,2.81154339,2421.1,2418.8,3.68888313]
[1769881028838,3.01846339,2420.1,2418.7,0.00392288]
[1769881029134,0.00460685,2419.9,2418.7,0.00392288]
[1769881029328,0.00460685,2419.5,2418.7,3.69280601]
[1769881029529,0.00460685,2419.3,2418.7,0.00392288]
[1769881029732,0.00450966,2420.1,2418.8,3.68888313]
[1769881029928,0.00460685,2419.6,2418.7,0.00392288]
[1769881030127,0.00460685,2418.8,2418.7,0.00392288]
[1769881030328,0.00460685,2418.8,2418.3,3.68888313]
[1769881030329,0.00460685,2418.8,2417.7,3.68888313]
[1769881030525,0.00460685,2418.8,2416.9,3.31]
[1769881030526,0.00460685,2418.1,2417.0,3.68888313]
[1769881030729,0.00460685,2418.0,2417.0,3.68888313]
[1769881030925,2.99331183,2419.1,2417.0,3.68888313]
[1769881031129,0.20706,2418.5,2416.9,3.31]
[1769881031433,2.78630183,2418.4,2416.0,3.68888313]
[1769881031729,2.78630183,2417.6,2414.5,3.68888313]
[1769881031931,3.22270183,2416.6,2413.2,3.31]
[1769881032132,3.22270183,2417.2,2413.4,2.66079588]
[1769881032326,3.22270183,2417.2,2413.2,3.31]
[1769881032327,3.22270183,2417.8,2414.1,2.66079588]
[1769881032528,3.39726841,2417.5,2414.2,2.737]
[1769881032735,3.39728841,2417.4,2414.2,2.737]
[1769881032929,0.00485022,2417.8,2414.8,2.66079588]
[1769881033238,0.20714,2417.5,2414.6,3.31]
[1769881033441,3.39726841,2417.5,2414.6,3.31]
[1769881033732,3.19012841,2417.4,2414.6,3.31]
[1769881034034,3.39730841,2417.0,2414.7,3.68888313]
[1769881034237,3.19012841,2416.6,2414.7,3.68888313]
[1769881034535,3.19012841,2416.6,2414.1,0.00340469]
[1769881034536,0.20726,2416.1,2414.1,3.69228782]
[1769881034739,3.3136154,2416.1,2414.1,3.69228782]
[1769881034940,3.308717,2416.0,2414.1,3.69228782]
[1769881035134,0.20731,2415.6,2413.2,3.31]
[1769881035432,3.52765231,2415.8,2413.2,3.31]
[1769881035937,0.20729,2415.8,2413.2,3.31]
[1769881036136,0.20729,2415.8,2413.2,3.31416598]
[1769881036440,3.73494231,2415.8,2413.2,3.31416598]
[1769881036734,0.20734,2415.3,2413.2,3.31416598]
[1769881036930,3.70306592,2415.3,2413.2,3.31416598]
[1769881037136,3.49572592,2415.1,2413.2,0.00416598]
[1769881037335,3.49572592,2414.6,2413.2,5.98e-06]
[1769881037531,3.49572592,2414.3,2412.0,3.68888313]
[1769881037741,0.20741,2414.4,2412.0,3.68888313]
[1769881038039,3.70313592,2414.4,2412.0,3.68888313]
[1769881038235,3.49572592,2414.0,2412.0,3.68888313]
[1769881038535,0.00488571,2414.0,2412.0,3.69403938]
[1769881039136,0.20736,2415.0,2412.2,3.68888313]
[1769881039629,3.43559235,2415.6,2412.2,3.68888313]
[1769881039834,0.20733,2415.4,2412.4,3.68888313]
[1769881040032,3.44047806,2415.3,2412.4,3.68888313]
[1769881040433,0.20736,2415.0,2412.4,3.68888313]
[1769881041238,3.74246012,2415.0,2412.4,3.68888313]
[1769881041434,0.20736,2415.0,2412.4,3.68888313]
[1769881041631,0.00486469,2415.4,2412.6,3.68888313]
[1769881042040,0.20735,2415.1,2412.6,3.68888313]
[1769881042738,0.20743,2414.2,2412.6,3.25904313]
[1769881042942,3.7760377,2414.0,2412.0,0.00515625]
[1769881043247,3.9834877,2414.0,2412.0,0.00515625]
[1769881043635,0.20745,2414.0,2412.0,0.00515625]
[1769881043836,3.9833977,2415.0,2412.1,3.314]
[1769881044037,0.20736,2415.0,2412.1,5.743]
[1769881044335,3.9833977,2415.0,2412.1,5.743]
[1769881044535,0.00486469,2415.4,2412.1,5.743]
[1769881044536,3.7760377,2414.8,2412.1,5.743]
[1769881044730,3.9834077,2414.8,2412.1,3.314]
[1769881044935,3.7760377,2414.6,2412.2,3.68888313]
[1769881045537,3.7760377,2413.9,2412.2,3.68888313]
[1769881045743,0.20744,2414.0,2412.2,3.68888313]
[1769881046042,3.9834977,2413.9,2412.0,3.69403938]
[1769881047136,3.7760377,2413.7,2412.0,3.69403938]
[1769881047334,3.78008112,2413.7,2412.0,3.69403938]
[1769881048339,3.78008112,2413.7,2412.0,0.00515625]
[1769881048541,3.9835177,2413.5,2412.0,0.00515625]
[1769881048942,0.00404342,2413.7,2410.3,3.68888313]
[1769881048943,3.9836177,2412.5,2410.3,3.68888313]
[1769881049142,3.7760377,2412.5,2410.3,3.68888313]
[1769881049540,0.20749,2413.4,2410.3,3.68888313]
[1769881049746,3.7760377,2413.3,2410.3,3.68888313]
[1769881049942,3.7760377,2412.5,2410.3,3.69376943]
[1769881050749,3.7760377,2412.3,2410.3,3.69376943]
[1769881050945,3.7760377,2411.9,2410.3,0.0048863]
[1769881051240,0.00366559,2411.9,2410.3,3.69376943]
[1769881052751,3.77970329,2411.9,2410.3,3.69376943]
[1769881052950,0.21128559,2411.9,2410.3,3.69376943]
[1769881053249,0.00366559,2411.9,2410.3,3.69376943]
[1769881057948,3.80023914,2411.9,2410.3,0.0048863]
[1769881058154,0.00366559,2411.9,2410.3,3.92919835]
[1769881058849,3.80023914,2411.9,2410.3,0.0048863]
[1769881059248,3.79657355,2411.7,2410.3,0.0048863]
[1769881059954,3.79657355,2411.7,2410.3,3.92919835]
[1769881060145,0.00366559,2411.9,2410.3,3.92919835]
[1769881060748,3.80023914,2411.9,2410.3,3.92919835]
[1769881061348,0.00366559,2411.9,2410.3,3.92919835]
[1769881061954,3.94146798,2412.8,2410.3,4.13695835]
[1769881062149,0.2075,2413.4,2410.7,4.03443184]
[1769881062357,4.14896798,2413.4,2410.9,4.03443184]
[1769881062551,3.94146798,2413.2,2410.9,4.03443184]
[1769881062757,4.14898798,2413.2,2410.9,4.03443184]
[1769881062958,3.94146798,2413.0,2410.9,4.03443184]
[1769881063160,3.94146798,2412.8,2410.9,4.03443184]
[1769881063357,3.94146798,2412.4,2410.8,3.318]
[1769881063553,3.94146798,2411.9,2410.4,4.03443184]
[1769881063752,3.94146798,2411.9,2410.3,0.0048863]
[1769881064057,3.94146798,2411.9,2410.3,4.03931814]
[1769881065153,34.18065222,2413.1,2410.3,4.03931814]
[1769881065154,3.94146798,2412.7,2410.3,4.03931814]
[1769881065765,3.94146798,2412.5,2410.3,4.03931814]
[1769881065957,0.20756,2412.6,2410.3,4.03931814]
[1769881066257,3.94146798,2413.0,2410.3,4.24707814]
[1769881066961,0.00441001,2413.2,2410.6,4.24216184]
[1769881067149,0.00441001,2413.2,2410.8,4.03443184]
[1769881067354,0.00441001,2413.2,2411.0,4.03443184]
[1769881068052,3.94587799,2413.2,2411.0,4.03443184]
[1769881068759,4.14900798,2412.9,2410.9,3.319]
[1769881068954,3.94146798,2412.6,2410.9,3.319]
[1769881069258,3.94146798,2412.6,2411.0,4.03443184]
[1769881070854,3.94146798,2413.1,2411.0,4.03443184]
[1769881071256,4.14900798,2412.9,2411.0,4.03443184]
[1769881072157,3.94146798,2412.7,2411.0,4.03443184]
[1769881072457,0.20761,2412.1,2410.3,0.0048863]
[1769881072661,3.94146798,2412.0,2410.3,0.0048863]
[1769881072851,3.94146798,2412.0,2410.3,4.03931814]
[1769881073251,34.18065222,2412.8,2410.3,4.03931814]
[1769881073252,3.94146798,2412.8,2410.3,4.03931814]
[1769881073561,3.94146798,2412.3,2410.3,4.03931814]
[1769881073759,4.14905798,2412.3,2410.3,4.03931814]
[1769881073956,3.94146798,2412.1,2410.3,4.03931814]
[1769881074363,4.14907798,2412.1,2410.3,4.03931814]
[1769881075457,2.29096333,2412.8,2410.9,2.59587705]
[1769881075660,3.94146798,2412.9,2410.9,2.59587705]
[1769881075963,3.94146798,2412.7,2410.4,2.59587705]
[1769881076158,3.94146798,2412.5,2410.4,2.59587705]
[1769881079258,3.94146798,2412.3,2410.3,0.0048863]
[1769881079462,4.14905798,2412.3,2410.3,0.0048863]
[1769881079662,5.05317808,2412.2,2410.3,0.0048863]
[1769881079965,3.94146798,2412.1,2410.3,0.0048863]
[1769881080166,3.94146798,2412.1,2410.3,2.58284534]
[1769881080465,3.94146798,2412.5,2410.3,2.79060534]
[1769881080662,3.94146798,2412.5,2410.3,2.58284534]
[1769881080859,3.94146798,2412.3,2410.3,2.58284534]
[1769881081565,3.94146798,2412.1,2410.3,0.0048863]
[1769881081761,3.94146798,2412.1,2410.3,2.58996525]
[1769881082162,3.94146798,2412.5,2410.3,2.58996525]
[1769881082663,0.00441001,2413.2,2411.1,2.68329682]
[1769881082860,0.00441001,2413.2,2411.4,2.68329682]
[1769881083162,0.00441001,2413.2,2411.6,2.89094682]
[1769881083561,0.00441001,2413.2,2411.6,2.62269559]
[1769881084264,6.03194096,2414.8,2411.6,2.83034559]
[1769881084265,3.94146798,2414.0,2411.6,2.83034559]
[1769881084467,3.94146798,2413.6,2411.6,2.62269559]
[1769881084660,3.94146798,2413.6,2411.5,3.319]
[1769881084855,3.94146798,2413.6,2410.3,12.21741857]
[1769881084856,3.94146798,2412.9,2410.3,12.21741857]
[1769881085065,3.94146798,2412.4,2410.3,0.0048863]
[1769881085266,0.00402176,2412.4,2410.3,0.0048863]
[1769881085461,0.00402176,2412.4,2410.4,2.86853588]
[1769881085661,0.00402176,2412.4,2410.5,2.61036028]
[1769881086264,0.00402176,2412.4,2410.8,2.61036028]
[1769881086467,3.94146798,2414.3,2411.3,2.59654428]
[1769881086777,3.94146798,2414.7,2412.0,2.59654428]
[1769881087068,3.9685233,2415.2,2412.7,2.58098812]
[1769881087262,3.9685233,2416.6,2413.6,2.58098812]
[1769881087562,3.9685233,2416.1,2413.8,2.58098812]
[1769881087759,4.49982488,2417.3,2413.8,2.58098812]
[1769881087760,3.9685233,2417.0,2413.8,2.58098812]
[1769881087960,3.9685233,2416.4,2413.8,2.58098812]
[1769881088158,3.9685233,2416.2,2413.8,2.58098812]
[1769881088370,3.9685233,2416.2,2413.7,3.319]
[1769881088670,3.9738222,2416.2,2413.7,5.80805197]
[1769881088873,3.9685233,2415.9,2413.7,3.32278677]
[1769881089163,3.9685233,2415.9,2413.8,2.4852652]
[1769881089971,3.9685233,2415.9,2413.7,3.32278677]
[1769881090165,3.9685233,2415.9,2413.7,5.80805197]
[1769881090977,3.9685233,2415.9,2413.8,2.51744449]
[1769881091371,0.0052989,2416.2,2413.8,2.51744449]
[1769881091772,3.9738222,2416.2,2413.8,2.51744449]
[1769881092570,4.1810822,2416.2,2413.7,3.32278677]
[1769881092769,3.9685233,2416.0,2413.7,3.32278677]
[1769881092966,3.9685233,2415.6,2413.7,3.32278677]
[1769881093374,3.9685233,2415.6,2413.7,0.00378677]
[1769881093776,3.9685233,2414.8,2412.5,2.40452478]
[1769881094276,3.9685233,2414.4,2412.1,2.40555506]
[1769881094578,4.1759533,2414.1,2412.0,3.317]
[1769881094873,3.9685233,2413.7,2412.0,3.32236082]
[1769881095674,4.1759933,2413.7,2412.0,0.00536082]
[1769881095871,0.00382053,2414.1,2410.5,2.41719174]
[1769881095872,3.9685233,2413.2,2410.5,2.41719174]
[1769881096482,3.9685233,2412.6,2410.4,3.317]
[1769881096781,4.1760833,2412.6,2410.4,3.317]
[1769881096980,4.1760833,2412.6,2410.4,3.32144843]
[1769881097176,4.1760833,2412.6,2410.4,5.74716794]
[1769881097370,4.1760833,2412.6,2410.5,2.42571951]
[1769881098080,3.9685233,2412.6,2410.5,2.42571951]
[1769881099171,3.9685233,2412.6,2410.4,3.32144843]
[1769881099773,3.9685233,2412.1,2410.4,0.00444843]
[1769881099972,4.18080189,2412.1,2410.4,0.00444843]
[1769881100172,3.9685233,2411.8,2410.4,0.00444843]
[1769881100375,3.317,2412.0,2408.0,23.43095]
[1769881100376,3.9685233,2411.3,2408.6,2.52771185]
[1769881100576,3.9685233,2410.9,2408.2,2.48727231]
[1769881101382,3.9685233,2410.9,2408.2,2.49229759]
[1769881102386,3.9685233,2410.9,2408.2,2.70023759]
[1769881103489,3.9685233,2410.9,2408.2,0.00502528]
[1769881103686,4.1763033,2410.2,2408.2,0.00502528]
[1769881103890,4.1763233,2409.8,2406.7,2.39764921]
[1769881104284,3.9685233,2409.5,2406.7,2.39764921]
[1769881104483,4.1763533,2409.5,2406.7,2.39764921]
[1769881104691,4.1763533,2409.5,2406.5,3.318]
[1769881104988,3.318,2410.1,2406.6,2.41873895]
[1769881104989,3.9685233,2409.1,2406.6,2.41873895]
[1769881107090,3.9685233,2409.1,2406.5,3.32244326]
[1769881107488,4.1764033,2408.9,2406.5,3.32244326]
[1769881107693,3.9685233,2408.7,2406.5,3.32244326]
[1769881107892,3.9685233,2408.5,2406.5,0.00444326]
[1769881108095,3.9685233,2408.5,2405.3,3.32]
[1769881108096,3.9685233,2408.0,2405.5,2.42282017]
[1769881108286,3.9685233,2408.0,2405.4,2.42726343]
[1769881109195,3.9685233,2408.0,2405.4,2.43097099]
[1769881109487,3.9685233,2408.0,2405.4,2.63914099]
[1769881110098,3.9685233,2408.0,2405.4,2.43097099]
[1769881110286,3.9685233,2406.9,2403.7,2.38880647]
[1769881110491,3.321,2406.8,2404.0,2.38880647]
[1769881110690,3.9685233,2406.7,2404.0,2.38880647]
[1769881110989,3.9685233,2407.8,2404.9,2.40156459]
[1769881111189,3.97186264,2407.8,2405.1,2.40156459]
[1769881113293,3.97186264,2407.8,2405.3,2.38000943]
[1769881114990,3.97186264,2407.8,2405.3,2.58819943]
[1769881115192,3.97186264,2407.8,2405.5,2.57737027]
[1769881115699,0.00333934,2407.8,2405.8,2.36920027]
[1769881116095,0.00333934,2407.8,2405.8,2.57735027]
[1769881116296,0.00333934,2407.8,2406.0,2.36920027]